[Event "Gibraltar Masters 18th"]
[Site "Gibraltar"]
[Date "2020.01.28"]
[Round "8.51"]
[White "Di Berardino, Diego Rafael"]
[Black "Padmini, Rout"]
[Result "1/2-1/2"]
[ECO "E05"]
[WhiteElo "2478"]
[BlackElo "2369"]
[PlyCount "133"]
[EventDate "2020.01.21"]
[EventType "swiss"]
[EventRounds "10"]
[EventCountry "GGB"]
[SourceTitle "BritBase"]
[Source "John Saunders"]
[SourceDate "2021.06.05"]
[SourceVersion "1"]
[SourceVersionDate "2021.06.05"]
[SourceQuality "1"]
[TimeControl "40/100:0"]
[WhiteClock "0:34:12"]
[BlackClock "0:36:05"]

1. Nf3 {[%emt 0:00:00]} d5 {[%emt 0:00:00]} 2. d4 {[%emt 0:00:00]} Nf6 {
[%emt 0:00:00]} 3. c4 {[%emt 0:00:00]} e6 {[%emt 0:00:00]} 4. g3 {[%emt 0:00:
00]} Be7 {[%emt 0:00:00]} 5. Bg2 {[%emt 0:00:00]} O-O {[%emt 0:00:00]} 6. O-O {
[%emt 0:00:00]} dxc4 {[%emt 0:00:00]} 7. Qc2 {[%emt 0:00:00]} a6 {[%emt 0:00:
00]} 8. a4 {[%emt 0:00:00]} Bd7 {[%emt 0:00:00]} 9. Rd1 {[%emt 0:00:00]} Bc6 {
[%emt 0:00:00]} 10. Nc3 {[%emt 0:00:00]} Bxf3 {[%emt 0:00:00]} 11. Bxf3 {
[%emt 0:00:00]} Nc6 {[%emt 0:00:00]} 12. Bxc6 {[%emt 0:00:00]} bxc6 {[%emt 0:
00:00]} 13. Bg5 {[%emt 0:00:00]} Nd7 {[%emt 0:00:00]} 14. Bxe7 {[%emt 0:00:00]}
Qxe7 {[%emt 0:00:00]} 15. Ne4 {[%emt 0:00:00]} Qb4 {[%emt 0:00:00]} 16. a5 {
[%emt 0:00:00]} Rfb8 {[%emt 0:00:00]} 17. Rd2 {[%emt 0:00:00]} Qb3 {[%emt 0:00:
00]} 18. Ra4 {[%emt 0:00:00]} Qb5 {[%emt 0:00:00]} 19. Qxc4 {[%emt 0:00:00]} h6
{[%emt 0:00:00]} 20. Rc2 {[%emt 0:00:00]} Ra7 {[%emt 0:00:00]} 21. e3 {[%emt 0:
00:00]} e5 {[%emt 0:00:00]} 22. Nc3 {[%emt 0:00:00]} Qxc4 {[%emt 0:00:00]} 23.
Rxc4 {[%emt 0:00:00]} exd4 {[%emt 0:00:00]} 24. exd4 {[%emt 0:00:00]} c5 {
[%emt 0:00:00]} 25. dxc5 {[%emt 0:00:00]} Ne5 {[%emt 0:00:00]} 26. Re4 {
[%emt 0:00:00]} Nc6 {[%emt 0:00:00]} 27. Nd5 {[%emt 0:00:00]} Rab7 {[%emt 0:00:
00]} 28. Ne7+ {[%emt 0:00:00]} Nxe7 {[%emt 0:00:00]} 29. Rxe7 {[%emt 0:00:00]}
c6 {[%emt 0:00:00]} 30. Rxb7 {[%emt 0:00:00]} Rxb7 {[%emt 0:00:00]} 31. Rd2 {
[%emt 0:00:00]} Rb5 {[%emt 0:00:00]} 32. Rd8+ {[%emt 0:00:00]} Kh7 {[%emt 0:00:
00]} 33. Rc8 {[%emt 0:00:00]} Rxc5 {[%emt 0:00:00]} 34. b4 {[%emt 0:00:00]} Rc4
{[%emt 0:00:00]} 35. Kf1 {[%emt 0:00:00]} g5 {[%emt 0:00:00]} 36. Ke2 {[%emt 0:
00:00]} Kg7 {[%emt 0:00:34]} 37. Kd3 {[%emt 0:00:00]} Rxb4 {[%emt 0:00:00]} 38.
Rxc6 {[%emt 0:00:00]} Rb2 {[%emt 0:00:00]} 39. Ke3 {[%emt 0:00:00]} Rb3+ {
[%emt 0:00:00]} 40. Ke2 {[%emt 0:00:00]} Rb2+ {[%emt 0:00:00]} 41. Kf3 {
[%emt 0:00:00]} Rb3+ {[%emt 0:00:00]} 42. Kg2 {[%emt 0:00:00]} h5 {[%emt 0:00:
00]} 43. Rxa6 {[%emt 0:00:00]} Ra3 {[%emt 0:00:00]} 44. h4 {[%emt 0:00:00]} g4
{[%emt 0:00:00]} 45. Kf1 {[%emt 0:00:00]} Ra1+ {[%emt 0:00:00]} 46. Ke2 {
[%emt 0:00:00]} Ra2+ {[%emt 0:00:00]} 47. Ke3 {[%emt 0:00:00]} Ra3+ {[%emt 0:
00:00]} 48. Ke2 {[%emt 0:00:00]} Ra2+ {[%emt 0:00:00]} 49. Kf1 {[%emt 0:00:00]}
Ra1+ {[%emt 0:00:00]} 50. Kg2 {[%emt 0:00:00]} Ra2 {[%emt 0:00:00]} 51. Ra8 {
[%emt 0:00:00]} Ra1 {[%emt 0:00:00]} 52. a6 {[%emt 0:00:00]} Kh7 {[%emt 0:00:
00]} 53. f4 {[%emt 0:00:00]} Ra2+ {[%emt 0:00:00]} 54. Kf1 {[%emt 0:00:00]} Kg7
{[%emt 0:00:00]} 55. Ke1 {[%emt 0:00:00]} Ra3 {[%emt 0:00:00]} 56. a7 {[%emt 0:
00:00]} Ra1+ {[%emt 0:00:00]} 57. Ke2 {[%emt 0:00:00]} Ra2+ {[%emt 0:00:00]}
58. Kd3 {[%emt 0:00:00]} Ra3+ {[%emt 0:00:00]} 59. Ke4 {[%emt 0:00:00]} Ra4+ {
[%emt 0:00:00]} 60. Ke5 {[%emt 0:00:00]} Ra5+ {[%emt 0:00:00]} 61. Kd6 {
[%emt 0:00:00]} Ra6+ {[%emt 0:00:00]} 62. Ke7 {[%emt 0:00:00]} Re6+ {[%emt 0:
00:00]} 63. Kd7 {[%emt 0:00:00]} Ra6 {[%emt 0:00:00]} 64. f5 {[%emt 0:00:00]}
Ra1 {[%emt 0:00:00]} 65. Ke7 {[%emt 0:00:00]} Re1+ {[%emt 0:00:00]} 66. Kd6 {
[%emt 0:00:00]} Ra1 {[%emt 0:00:00]} 67. Ke7 {[%emt 0:00:00]} 1/2-1/2

[Event "Gibraltar Masters 18th"]
[Site "Gibraltar"]
[Date "2020.01.28"]
[Round "8.52"]
[White "Cramling, Pia"]
[Black "Nandhidhaa, P V."]
[Result "1/2-1/2"]
[ECO "D38"]
[WhiteElo "2470"]
[BlackElo "2312"]
[PlyCount "124"]
[EventDate "2020.01.21"]
[EventType "swiss"]
[EventRounds "10"]
[EventCountry "GGB"]
[SourceTitle "BritBase"]
[Source "John Saunders"]
[SourceDate "2021.06.05"]
[SourceVersion "1"]
[SourceVersionDate "2021.06.05"]
[SourceQuality "1"]
[TimeControl "40/100:0"]
[WhiteClock "0:11:06"]
[BlackClock "0:52:08"]

1. d4 {[%emt 0:00:00]} Nf6 {[%emt 0:00:00]} 2. c4 {[%emt 0:00:00]} e6 {[%emt 0:
00:00]} 3. Nf3 {[%emt 0:00:00]} d5 {[%emt 0:00:00]} 4. Nc3 {[%emt 0:00:00]} Bb4
{[%emt 0:00:00]} 5. Bg5 {[%emt 0:00:00]} h6 {[%emt 0:00:00]} 6. Bxf6 {[%emt 0:
00:00]} Qxf6 {[%emt 0:00:00]} 7. e3 {[%emt 0:00:00]} O-O {[%emt 0:00:00]} 8.
Rc1 {[%emt 0:00:00]} Nc6 {[%emt 0:00:00]} 9. cxd5 {[%emt 0:00:00]} exd5 {
[%emt 0:00:00]} 10. a3 {[%emt 0:00:00]} Bxc3+ {[%emt 0:00:00]} 11. Rxc3 {
[%emt 0:00:00]} Ne7 {[%emt 0:00:00]} 12. Bd3 {[%emt 0:00:00]} c6 {[%emt 0:00:
00]} 13. Ne5 {[%emt 0:00:00]} Bf5 {[%emt 0:00:00]} 14. Qf3 {[%emt 0:00:00]} Qe6
{[%emt 0:00:00]} 15. O-O {[%emt 0:00:00]} Bxd3 {[%emt 0:00:00]} 16. Nxd3 {
[%emt 0:00:00]} Nc8 {[%emt 0:00:00]} 17. Nc5 {[%emt 0:00:00]} Qe7 {[%emt 0:00:
00]} 18. Qf5 {[%emt 0:00:00]} Nd6 {[%emt 0:00:00]} 19. Qd7 {[%emt 0:00:00]}
Rfe8 {[%emt 0:00:00]} 20. Qxe7 {[%emt 0:00:00]} Rxe7 {[%emt 0:00:00]} 21. Rfc1
{[%emt 0:00:00]} Rae8 {[%emt 0:00:00]} 22. g3 {[%emt 0:00:00]} h5 {[%emt 0:00:
00]} 23. h4 {[%emt 0:00:00]} g6 {[%emt 0:00:00]} 24. Kg2 {[%emt 0:00:00]} Kg7 {
[%emt 0:00:00]} 25. a4 {[%emt 0:00:00]} a6 {[%emt 0:00:00]} 26. Rb3 {[%emt 0:
00:00]} Rc7 {[%emt 0:00:00]} 27. Nd3 {[%emt 0:00:00]} Nc4 {[%emt 0:00:00]} 28.
Rbc3 {[%emt 0:00:00]} Rce7 {[%emt 0:00:00]} 29. b3 {[%emt 0:00:00]} Nd6 {
[%emt 0:00:00]} 30. Nf4 {[%emt 0:00:00]} Rd8 {[%emt 0:00:00]} 31. Rb1 {[%emt 0:
00:00]} Rdd7 {[%emt 0:00:00]} 32. b4 {[%emt 0:00:00]} Rd8 {[%emt 0:00:00]} 33.
Rbb3 {[%emt 0:00:00]} Ree8 {[%emt 0:00:00]} 34. Rc2 {[%emt 0:00:00]} Re7 {
[%emt 0:00:00]} 35. Rc1 {[%emt 0:00:00]} Ree8 {[%emt 0:00:00]} 36. Ne2 {
[%emt 0:00:00]} Rc8 {[%emt 0:00:00]} 37. Ra1 {[%emt 0:00:00]} Ra8 {[%emt 0:00:
00]} 38. Nc3 {[%emt 0:00:00]} Rec8 {[%emt 0:00:00]} 39. Rab1 {[%emt 0:00:00]}
Nc4 {[%emt 0:00:00]} 40. Rd1 {[%emt 0:00:00]} Ra7 {[%emt 0:00:00]} 41. Kf3 {
[%emt 0:00:00]} Raa8 {[%emt 0:00:00]} 42. Ke2 {[%emt 0:00:00]} Nd6 {[%emt 0:00:
00]} 43. Kd3 {[%emt 0:00:00]} Kf8 {[%emt 0:00:00]} 44. Rdb1 {[%emt 0:00:00]}
Ra7 {[%emt 0:00:00]} 45. R3b2 {[%emt 0:00:00]} Raa8 {[%emt 0:00:00]} 46. Ra2 {
[%emt 0:00:00]} Ra7 {[%emt 0:00:00]} 47. Raa1 {[%emt 0:00:00]} Raa8 {[%emt 0:
00:00]} 48. b5 {[%emt 0:00:00]} axb5 {[%emt 0:00:00]} 49. axb5 {[%emt 0:00:00]}
Ke7 {[%emt 0:00:00]} 50. bxc6 {[%emt 0:00:00]} bxc6 {[%emt 0:00:00]} 51. Na4 {
[%emt 0:00:00]} Rc7 {[%emt 0:00:00]} 52. Nc5 {[%emt 0:00:00]} Rca7 {[%emt 0:00:
00]} 53. Rxa7+ {[%emt 0:00:00]} Rxa7 {[%emt 0:00:00]} 54. Ke2 {[%emt 0:00:00]}
Ra2+ {[%emt 0:00:00]} 55. Kf3 {[%emt 0:00:00]} Ne4 {[%emt 0:00:00]} 56. Rb7+ {
[%emt 0:00:00]} Ke8 {[%emt 0:00:00]} 57. Nxe4 {[%emt 0:00:00]} dxe4+ {[%emt 0:
00:00]} 58. Kxe4 {[%emt 0:00:00]} Rxf2 {[%emt 0:00:00]} 59. Ke5 {[%emt 0:00:00]
} Rf5+ {[%emt 0:00:00]} 60. Kd6 {[%emt 0:00:00]} Rf6+ {[%emt 0:00:00]} 61. Ke5
{[%emt 0:00:00]} Rf5+ {[%emt 0:00:00]} 62. Ke4 {[%emt 0:00:00]} Rf2 {[%emt 0:
00:00]} 1/2-1/2

[Event "Gibraltar Masters 18th"]
[Site "Gibraltar"]
[Date "2020.01.28"]
[Round "8.53"]
[White "Ioannidis, Evgenios"]
[Black "Stefanova, Antoaneta"]
[Result "0-1"]
[ECO "B06"]
[WhiteElo "2373"]
[BlackElo "2469"]
[PlyCount "72"]
[EventDate "2020.01.21"]
[EventType "swiss"]
[EventRounds "10"]
[EventCountry "GGB"]
[SourceTitle "BritBase"]
[Source "John Saunders"]
[SourceDate "2021.06.05"]
[SourceVersion "1"]
[SourceVersionDate "2021.06.05"]
[SourceQuality "1"]
[TimeControl "40/100:0"]
[WhiteClock "0:00:52"]
[BlackClock "0:00:58"]

1. e4 {[%emt 0:00:00]} g6 {[%emt 0:00:00]} 2. d4 {[%emt 0:00:00]} Bg7 {[%emt 0:
00:00]} 3. Nf3 {[%emt 0:00:00]} a6 {[%emt 0:00:00]} 4. Bd3 {[%emt 0:00:00]} d6
{[%emt 0:00:00]} 5. h3 {[%emt 0:00:00]} c5 {[%emt 0:00:00]} 6. dxc5 {[%emt 0:
00:00]} dxc5 {[%emt 0:00:00]} 7. O-O {[%emt 0:00:00]} Qc7 {[%emt 0:00:00]} 8.
a4 {[%emt 0:00:00]} Nc6 {[%emt 0:00:00]} 9. Re1 {[%emt 0:00:00]} e6 {[%emt 0:
00:00]} 10. Na3 {[%emt 0:00:00]} Nge7 {[%emt 0:00:00]} 11. Nc4 {[%emt 0:00:00]}
O-O {[%emt 0:00:00]} 12. e5 {[%emt 0:00:00]} Nb4 {[%emt 0:00:00]} 13. Be4 {
[%emt 0:00:00]} Rd8 {[%emt 0:00:00]} 14. Qe2 {[%emt 0:00:00]} Bd7 {[%emt 0:00:
00]} 15. Nd6 {[%emt 0:00:00]} Bc6 {[%emt 0:00:00]} 16. Ng5 {[%emt 0:00:00]} Rf8
{[%emt 0:00:00]} 17. c3 {[%emt 0:00:00]} Nbd5 {[%emt 0:00:00]} 18. f4 {[%emt 0:
00:00]} h6 {[%emt 0:00:00]} 19. Nf3 {[%emt 0:00:00]} Nc8 {[%emt 0:00:00]} 20.
Nxc8 {[%emt 0:00:00]} Raxc8 {[%emt 0:00:00]} 21. Qf2 {[%emt 0:00:00]} Qe7 {
[%emt 0:00:00]} 22. Nd2 {[%emt 0:00:00]} b5 {[%emt 0:00:00]} 23. axb5 {[%emt 0:
00:00]} axb5 {[%emt 0:00:00]} 24. Nb3 {[%emt 0:00:00]} Ba8 {[%emt 0:00:00]} 25.
Ra5 {[%emt 0:00:00]} c4 {[%emt 0:00:00]} 26. Nd4 {[%emt 0:00:00]} b4 {[%emt 0:
00:00]} 27. Nb5 {[%emt 0:00:00]} Rfd8 {[%emt 0:00:00]} 28. Nd6 {[%emt 0:00:00]}
Rb8 {[%emt 0:00:00]} 29. Bd2 {[%emt 0:00:00]} bxc3 {[%emt 0:00:00]} 30. Bxc3 {
[%emt 0:00:00]} Nxc3 {[%emt 0:00:00]} 31. bxc3 {[%emt 0:00:00]} Bxe4 {[%emt 0:
00:00]} 32. Rxe4 {[%emt 0:00:00]} g5 {[%emt 0:00:00]} 33. Rxc4 {[%emt 0:00:00]}
gxf4 {[%emt 0:00:00]} 34. Rxf4 {[%emt 0:00:00]} Bxe5 {[%emt 0:00:57]} 35. Rxe5
{[%emt 0:00:00]} Qxd6 {[%emt 0:00:00]} 36. Rh5 {[%emt 0:00:48]} Qd1+ {[%emt 0:
00:00]} 0-1

[Event "Gibraltar Masters 18th"]
[Site "Gibraltar"]
[Date "2020.01.28"]
[Round "8.54"]
[White "Ravi, Teja S"]
[Black "Plotkin, Victor"]
[Result "1/2-1/2"]
[ECO "D02"]
[WhiteElo "2464"]
[BlackElo "2267"]
[PlyCount "136"]
[EventDate "2020.01.21"]
[EventType "swiss"]
[EventRounds "10"]
[EventCountry "GGB"]
[SourceTitle "BritBase"]
[Source "John Saunders"]
[SourceDate "2021.06.05"]
[SourceVersion "1"]
[SourceVersionDate "2021.06.05"]
[SourceQuality "1"]
[TimeControl "40/100:0"]
[WhiteClock "0:30:49"]
[BlackClock "0:10:09"]

1. d4 {[%emt 0:00:00]} d5 {[%emt 0:00:00]} 2. Nf3 {[%emt 0:00:00]} Nf6 {
[%emt 0:00:00]} 3. Bf4 {[%emt 0:00:00]} c5 {[%emt 0:00:00]} 4. e3 {[%emt 0:00:
00]} Qb6 {[%emt 0:00:00]} 5. Nc3 {[%emt 0:00:00]} Bd7 {[%emt 0:00:00]} 6. Rb1 {
[%emt 0:00:00]} e6 {[%emt 0:00:00]} 7. Be2 {[%emt 0:00:00]} Be7 {[%emt 0:00:00]
} 8. Ne5 {[%emt 0:00:00]} O-O {[%emt 0:00:00]} 9. O-O {[%emt 0:00:00]} a6 {
[%emt 0:00:00]} 10. dxc5 {[%emt 0:00:00]} Qxc5 {[%emt 0:00:00]} 11. Qd4 {
[%emt 0:00:00]} Qxd4 {[%emt 0:00:00]} 12. exd4 {[%emt 0:00:00]} Nc6 {[%emt 0:
00:00]} 13. Be3 {[%emt 0:00:00]} Rfc8 {[%emt 0:00:00]} 14. Nxd7 {[%emt 0:00:00]
} Nxd7 {[%emt 0:00:00]} 15. Nd1 {[%emt 0:00:00]} Nb6 {[%emt 0:00:00]} 16. b3 {
[%emt 0:00:00]} Bf6 {[%emt 0:00:00]} 17. c3 {[%emt 0:00:00]} Nd7 {[%emt 0:00:
00]} 18. a4 {[%emt 0:00:00]} Be7 {[%emt 0:00:00]} 19. Nb2 {[%emt 0:00:00]} Nf6
{[%emt 0:00:00]} 20. Bd3 {[%emt 0:00:00]} Na5 {[%emt 0:00:00]} 21. b4 {[%emt 0:
00:00]} Nc4 {[%emt 0:00:00]} 22. Nxc4 {[%emt 0:00:00]} dxc4 {[%emt 0:00:00]}
23. Be2 {[%emt 0:00:00]} Nd5 {[%emt 0:00:00]} 24. Bd2 {[%emt 0:00:00]} a5 {
[%emt 0:00:00]} 25. b5 {[%emt 0:00:00]} Bd6 {[%emt 0:00:00]} 26. Bf3 {[%emt 0:
00:00]} b6 {[%emt 0:00:00]} 27. Rfe1 {[%emt 0:00:00]} Ra7 {[%emt 0:00:00]} 28.
Kf1 {[%emt 0:00:00]} Kf8 {[%emt 0:00:00]} 29. Ke2 {[%emt 0:00:00]} Re7 {
[%emt 0:00:00]} 30. Kd1 {[%emt 0:00:00]} Bf4 {[%emt 0:00:00]} 31. Kc2 {[%emt 0:
00:00]} Bxd2 {[%emt 0:00:00]} 32. Kxd2 {[%emt 0:00:00]} Rd8 {[%emt 0:00:00]}
33. Kc2 {[%emt 0:00:00]} g6 {[%emt 0:00:00]} 34. g3 {[%emt 0:00:00]} Rc7 {
[%emt 0:00:00]} 35. Re5 {[%emt 0:00:00]} Rd6 {[%emt 0:00:00]} 36. Rbe1 {
[%emt 0:00:00]} Rc8 {[%emt 0:00:00]} 37. Bg2 {[%emt 0:00:00]} Rc7 {[%emt 0:00:
00]} 38. f4 {[%emt 0:00:00]} Nf6 {[%emt 0:00:00]} 39. Bf3 {[%emt 0:00:00]} h5 {
[%emt 0:00:00]} 40. h3 {[%emt 0:00:00]} Nd7 {[%emt 0:00:00]} 41. R5e2 {[%emt 0:
00:00]} Nf6 {[%emt 0:01:15]} 42. g4 {[%emt 0:02:20]} hxg4 {[%emt 0:00:00]} 43.
hxg4 {[%emt 0:00:00]} Nd5 {[%emt 0:00:00]} 44. Bxd5 {[%emt 0:00:00]} Rxd5 {
[%emt 0:00:00]} 45. Rh1 {[%emt 0:00:00]} g5 {[%emt 0:00:00]} 46. fxg5 {[%emt 0:
00:00]} Rxg5 {[%emt 0:00:00]} 47. Rh8+ {[%emt 0:00:00]} Rg8 {[%emt 0:00:00]}
48. Rxg8+ {[%emt 0:00:00]} Kxg8 {[%emt 0:00:00]} 49. Re5 {[%emt 0:00:00]} Rc8 {
[%emt 0:00:00]} 50. d5 {[%emt 0:00:00]} Rc5 {[%emt 0:00:00]} 51. Kd2 {[%emt 0:
00:00]} Kf8 {[%emt 0:00:00]} 52. Ke3 {[%emt 0:00:00]} Ke7 {[%emt 0:00:00]} 53.
Kd4 {[%emt 0:00:00]} Rc8 {[%emt 0:00:00]} 54. g5 {[%emt 0:00:00]} Rh8 {[%emt 0:
00:00]} 55. dxe6 {[%emt 0:00:00]} fxe6 {[%emt 0:00:00]} 56. Kxc4 {[%emt 0:00:
00]} Rh4+ {[%emt 0:00:00]} 57. Kb3 {[%emt 0:00:00]} Rg4 {[%emt 0:00:00]} 58.
Re3 {[%emt 0:00:00]} Rxg5 {[%emt 0:00:00]} 59. Rh3 {[%emt 0:00:00]} Kd7 {
[%emt 0:00:00]} 60. Rh7+ {[%emt 0:00:00]} Kc8 {[%emt 0:00:00]} 61. Re7 {
[%emt 0:00:00]} Re5 {[%emt 0:00:00]} 62. c4 {[%emt 0:00:00]} Re3+ {[%emt 0:00:
00]} 63. Kc2 {[%emt 0:00:00]} Ra3 {[%emt 0:00:00]} 64. Rxe6 {[%emt 0:00:00]}
Rxa4 {[%emt 0:00:00]} 65. Kc3 {[%emt 0:00:00]} Ra3+ {[%emt 0:00:59]} 66. Kd4 {
[%emt 0:00:00]} Kc7 {[%emt 0:00:00]} 67. Re7+ {[%emt 0:00:00]} Kc8 {[%emt 0:00:
00]} 68. c5 {[%emt 0:00:00]} Rb3 {[%emt 0:00:00]} 1/2-1/2

[Event "Gibraltar Masters 18th"]
[Site "Gibraltar"]
[Date "2020.01.28"]
[Round "8.55"]
[White "Zhukova, Natalia"]
[Black "Javakhishvili, Lela"]
[Result "1/2-1/2"]
[ECO "A40"]
[WhiteElo "2338"]
[BlackElo "2463"]
[PlyCount "71"]
[EventDate "2020.01.21"]
[EventType "swiss"]
[EventRounds "10"]
[EventCountry "GGB"]
[SourceTitle "BritBase"]
[Source "John Saunders"]
[SourceDate "2021.06.05"]
[SourceVersion "1"]
[SourceVersionDate "2021.06.05"]
[SourceQuality "1"]
[TimeControl "40/100:0"]
[WhiteClock "1:22:30"]
[BlackClock "1:22:08"]

1. d4 {[%emt 0:00:00]} e6 {[%emt 0:00:00]} 2. c4 {[%emt 0:00:00]} b6 {[%emt 0:
00:00]} 3. e4 {[%emt 0:00:00]} Bb7 {[%emt 0:00:00]} 4. Bd3 {[%emt 0:00:00]}
Bb4+ {[%emt 0:00:00]} 5. Bd2 {[%emt 0:00:00]} Bxd2+ {[%emt 0:00:00]} 6. Nxd2 {
[%emt 0:00:00]} d6 {[%emt 0:00:00]} 7. f4 {[%emt 0:00:00]} e5 {[%emt 0:00:00]}
8. fxe5 {[%emt 0:00:00]} dxe5 {[%emt 0:00:00]} 9. d5 {[%emt 0:00:00]} Nd7 {
[%emt 0:00:00]} 10. Ne2 {[%emt 0:00:00]} Ne7 {[%emt 0:00:00]} 11. O-O {[%emt 0:
00:00]} O-O {[%emt 0:00:00]} 12. Nc3 {[%emt 0:00:00]} Nc5 {[%emt 0:00:00]} 13.
Be2 {[%emt 0:00:00]} a5 {[%emt 0:00:00]} 14. Bg4 {[%emt 0:00:00]} Bc8 {[%emt 0:
00:00]} 15. Bxc8 {[%emt 0:00:00]} Rxc8 {[%emt 0:00:00]} 16. Qg4 {[%emt 0:00:00]
} Ng6 {[%emt 0:00:00]} 17. b3 {[%emt 0:00:00]} c6 {[%emt 0:00:00]} 18. Kh1 {
[%emt 0:00:00]} Qd7 {[%emt 0:00:00]} 19. Qxd7 {[%emt 0:00:00]} Nxd7 {[%emt 0:
00:00]} 20. g3 {[%emt 0:00:00]} cxd5 {[%emt 0:00:00]} 21. Nxd5 {[%emt 0:00:00]}
f6 {[%emt 0:00:00]} 22. Rad1 {[%emt 0:00:00]} Kf7 {[%emt 0:00:00]} 23. Kg2 {
[%emt 0:00:00]} Ne7 {[%emt 0:00:00]} 24. Nb1 {[%emt 0:00:00]} Nxd5 {[%emt 0:00:
00]} 25. Rxd5 {[%emt 0:00:00]} Nc5 {[%emt 0:00:00]} 26. Nc3 {[%emt 0:00:00]}
Rfd8 {[%emt 0:00:00]} 27. Rfd1 {[%emt 0:00:00]} Rxd5 {[%emt 0:00:00]} 28. Nxd5
{[%emt 0:00:00]} Nxe4 {[%emt 0:00:00]} 29. Nxb6 {[%emt 0:00:00]} Rc6 {[%emt 0:
00:00]} 30. Na4 {[%emt 0:00:00]} f5 {[%emt 0:00:00]} 31. Rd7+ {[%emt 0:00:00]}
Ke6 {[%emt 0:00:00]} 32. Rxg7 {[%emt 0:00:00]} Rd6 {[%emt 0:00:00]} 33. Rxh7 {
[%emt 0:00:00]} Rd2+ {[%emt 0:00:00]} 34. Kg1 {[%emt 0:00:00]} Rd1+ {[%emt 0:
00:00]} 35. Kg2 {[%emt 0:00:00]} Rd2+ {[%emt 0:00:00]} 36. Kg1 {[%emt 0:00:00]}
1/2-1/2

[Event "Gibraltar Masters 18th"]
[Site "Gibraltar"]
[Date "2020.01.28"]
[Round "8.56"]
[White "Kozak, Adam"]
[Black "De Haan, Eric"]
[Result "1-0"]
[ECO "E08"]
[WhiteElo "2523"]
[BlackElo "2308"]
[PlyCount "57"]
[EventDate "2020.01.21"]
[EventType "swiss"]
[EventRounds "10"]
[EventCountry "GGB"]
[SourceTitle "BritBase"]
[Source "John Saunders"]
[SourceDate "2021.06.05"]
[SourceVersion "1"]
[SourceVersionDate "2021.06.05"]
[SourceQuality "1"]
[TimeControl "40/100:0"]
[WhiteClock "0:01:22"]
[BlackClock "0:01:00"]

1. Nf3 {[%emt 0:00:00]} d5 {[%emt 0:00:00]} 2. g3 {[%emt 0:00:00]} Nf6 {
[%emt 0:00:00]} 3. Bg2 {[%emt 0:00:00]} e6 {[%emt 0:00:00]} 4. O-O {[%emt 0:00:
00]} Be7 {[%emt 0:00:00]} 5. c4 {[%emt 0:00:00]} O-O {[%emt 0:00:00]} 6. d4 {
[%emt 0:00:00]} c6 {[%emt 0:00:00]} 7. Qc2 {[%emt 0:00:00]} b6 {[%emt 0:00:00]}
8. Rd1 {[%emt 0:00:00]} Bb7 {[%emt 0:00:00]} 9. b3 {[%emt 0:00:00]} Nbd7 {
[%emt 0:00:00]} 10. Nc3 {[%emt 0:00:00]} Rc8 {[%emt 0:00:00]} 11. e4 {[%emt 0:
00:00]} c5 {[%emt 0:00:00]} 12. exd5 {[%emt 0:00:00]} exd5 {[%emt 0:00:00]} 13.
Nh4 {[%emt 0:00:00]} cxd4 {[%emt 0:00:00]} 14. Rxd4 {[%emt 0:00:00]} Bc5 {
[%emt 0:00:00]} 15. Rd1 {[%emt 0:00:00]} Ng4 {[%emt 0:00:00]} 16. Rf1 {[%emt 0:
00:00]} Qf6 {[%emt 0:00:00]} 17. Bb2 {[%emt 0:00:00]} Nde5 {[%emt 0:00:00]} 18.
Bxd5 {[%emt 0:00:00]} Bxd5 {[%emt 0:00:00]} 19. Nxd5 {[%emt 0:00:00]} Qh6 {
[%emt 0:00:00]} 20. Qf5 {[%emt 0:00:00]} Rce8 {[%emt 0:00:00]} 21. Bxe5 {
[%emt 0:00:00]} Nxe5 {[%emt 0:00:00]} 22. Rae1 {[%emt 0:00:00]} f6 {[%emt 0:00:
00]} 23. Ne3 {[%emt 0:00:00]} g6 {[%emt 0:00:00]} 24. Qe4 {[%emt 0:00:00]} Kh8
{[%emt 0:00:00]} 25. Nf3 {[%emt 0:00:00]} Nf7 {[%emt 0:00:00]} 26. Qd3 {
[%emt 0:00:00]} Qh3 {[%emt 0:00:12]} 27. Nd5 {[%emt 0:00:20]} Rd8 {[%emt 0:00:
27]} 28. Qc3 {[%emt 0:00:00]} Nh6 {[%emt 0:00:01]} 29. b4 {[%emt 0:00:00]} 1-0